[Event "Titled Tuesday Blitz May 25 2021"]
[White "Spata, German"]
[Black "Provotorov, Ivan"]
[WhiteFideId "113026"]
[BlackFideId "4154657"]
[WhiteElo "2238"]
[BlackElo "2244"]
[Result "1-0"]
[Round "07"]
[TimeControl "180+1"]
[Date "2021.05.25"]
[WhiteClock "0:00:18"]
[BlackClock "0:00:01"]

1. Nf3 {[%clk 0:03:00]}  Nf6 {[%clk 0:02:58]} 2. b3 {[%clk 0:02:51]}  g6 {[%clk 0:02:56]} 3. Bb2 {[%clk 0:02:51]}  Bg7 {[%clk 0:02:56]} 4. e3 {[%clk 0:02:51]}  O-O {[%clk 0:02:56]} 5. Be2 {[%clk 0:02:50]}  c5 {[%clk 0:02:55]} 6. c4 {[%clk 0:02:49]}  b6 {[%clk 0:02:51]} 7. O-O {[%clk 0:02:49]}  Bb7 {[%clk 0:02:52]} 8. d4 {[%clk 0:02:48]}  cxd4 {[%clk 0:02:51]} 9. Nxd4 {[%clk 0:02:49]}  d5 {[%clk 0:02:50]} 10. Bf3 {[%clk 0:02:49]}  Nbd7 {[%clk 0:02:33]} 11. Nc3 {[%clk 0:02:46]}  Ne5 {[%clk 0:02:21]} 12. Nxd5 {[%clk 0:02:43]}  Nxf3+ {[%clk 0:02:18]} 13. Nxf3 {[%clk 0:02:43]}  Nxd5 {[%clk 0:02:15]} 14. Bxg7 {[%clk 0:02:42]}  Kxg7 {[%clk 0:01:53]} 15. cxd5 {[%clk 0:02:41]}  Qxd5 {[%clk 0:01:46]} 16. Qxd5 {[%clk 0:02:36]}  Bxd5 {[%clk 0:01:47]} 17. Rfd1 {[%clk 0:02:37]}  Rfd8 {[%clk 0:01:44]} 18. Kf1 {[%clk 0:02:35]}  Rac8 {[%clk 0:01:35]} 19. Ke1 {[%clk 0:02:22]}  Bxf3 {[%clk 0:01:11]} 20. Rxd8 {[%clk 0:02:05]}  Rxd8 {[%clk 0:01:12]} 21. gxf3 {[%clk 0:02:03]}  Kf6 {[%clk 0:01:03]} 22. Rc1 {[%clk 0:02:02]}  Rd7 {[%clk 0:01:01]} 23. Ke2 {[%clk 0:01:59]}  Kg5 {[%clk 0:00:59]} 24. Rc4 {[%clk 0:01:58]}  f5 {[%clk 0:00:53]} 25. a4 {[%clk 0:01:39]}  e5 {[%clk 0:00:43]} 26. f4+ {[%clk 0:01:35]}  exf4 {[%clk 0:00:43]} 27. Rxf4 {[%clk 0:01:34]}  Kf6 {[%clk 0:00:41]} 28. Rc4 {[%clk 0:01:30]}  g5 {[%clk 0:00:38]} 29. Rc6+ {[%clk 0:01:27]}  Ke5 {[%clk 0:00:35]} 30. h3 {[%clk 0:01:18]}  g4 {[%clk 0:00:30]} 31. Rh6 {[%clk 0:01:09]}  Rg7 {[%clk 0:00:15]} 32. Rh5 {[%clk 0:01:01]}  gxh3 {[%clk 0:00:13]} 33. Rxh3 {[%clk 0:01:00]}  Kf6 {[%clk 0:00:08]} 34. Kf3 {[%clk 0:00:54]}  Rc7 {[%clk 0:00:07]} 35. Rh6+ {[%clk 0:00:51]}  Ke5 {[%clk 0:00:07]} 36. Rh5 {[%clk 0:00:49]}  Rd7 {[%clk 0:00:06]} 37. b4 {[%clk 0:00:42]}  Rc7 {[%clk 0:00:05]} 38. a5 {[%clk 0:00:35]}  bxa5 {[%clk 0:00:05]} 39. bxa5 {[%clk 0:00:35]}  Rc5 {[%clk 0:00:05]} 40. Rxh7 {[%clk 0:00:31]}  Rxa5 {[%clk 0:00:05]} 41. Re7+ {[%clk 0:00:31]}  Kf6 {[%clk 0:00:06]} 42. Rb7 {[%clk 0:00:31]}  Ra4 {[%clk 0:00:06]} 43. Rb8 {[%clk 0:00:31]}  a5 {[%clk 0:00:06]} 44. Ra8 {[%clk 0:00:31]}  Ke5 {[%clk 0:00:06]} 45. Ra7 {[%clk 0:00:30]}  Kd5 {[%clk 0:00:06]} 46. Ra8 {[%clk 0:00:29]}  Ke5 {[%clk 0:00:06]} 47. Rb8 {[%clk 0:00:29]}  f4 {[%clk 0:00:06]} 48. Re8+ {[%clk 0:00:28]}  Kd5 {[%clk 0:00:03]} 49. e4+ {[%clk 0:00:26]}  Kd6 {[%clk 0:00:02]} 50. Kxf4 {[%clk 0:00:26]}  Ra2 {[%clk 0:00:02]} 51. f3 {[%clk 0:00:25]}  a4 {[%clk 0:00:02]} 52. Ra8 {[%clk 0:00:24]}  a3 {[%clk 0:00:02]} 53. e5+ {[%clk 0:00:24]}  Ke6 {[%clk 0:00:03]} 54. Ra6+ {[%clk 0:00:23]}  Kd5 {[%clk 0:00:03]} 55. Kf5 {[%clk 0:00:23]}  Re2 {[%clk 0:00:02]} 56. f4 {[%clk 0:00:22]}  a2 {[%clk 0:00:02]} 57. Kf6 {[%clk 0:00:20]}  Re4 {[%clk 0:00:01]} 58. Kf5 {[%clk 0:00:18]}  Re2 {[%clk 0:00:01]} 59. Ra8 {[%clk 0:00:18]} 1-0


[Site "https://www.chess.com"]

[Event "Titled Tuesday Blitz May 25 2021"]
[White "Stoleriu, George"]
[Black "Salem, A.R. Saleh"]
[WhiteFideId "1227505"]
[BlackFideId "9301348"]
[WhiteElo "2227"]
[BlackElo "2659"]
[Result "0-1"]
[Round "07"]
[TimeControl "180+1"]
[Date "2021.05.25"]
[WhiteClock "0:00:01"]
[BlackClock "0:00:04"]

1. e4 {[%clk 0:03:00]}  c6 {[%clk 0:02:59]} 2. Nf3 {[%clk 0:03:00]}  d5 {[%clk 0:03:00]} 3. exd5 {[%clk 0:03:01]}  cxd5 {[%clk 0:03:01]} 4. Ne5 {[%clk 0:03:01]}  Nc6 {[%clk 0:03:01]} 5. d4 {[%clk 0:03:00]}  Nf6 {[%clk 0:02:58]} 6. Bb5 {[%clk 0:02:59]}  Bd7 {[%clk 0:02:59]} 7. Nxd7 {[%clk 0:02:59]}  Qxd7 {[%clk 0:02:59]} 8. c3 {[%clk 0:02:57]}  a6 {[%clk 0:02:59]} 9. Bd3 {[%clk 0:02:57]}  e5 {[%clk 0:02:59]} 10. dxe5 {[%clk 0:02:54]}  Nxe5 {[%clk 0:03:00]} 11. O-O {[%clk 0:02:55]}  O-O-O {[%clk 0:02:58]} 12. Bf4 {[%clk 0:02:51]}  Bd6 {[%clk 0:02:56]} 13. Bxe5 {[%clk 0:02:35]}  Bxe5 {[%clk 0:02:56]} 14. Qf3 {[%clk 0:02:35]}  Ne4 {[%clk 0:02:48]} 15. Bxe4 {[%clk 0:02:24]}  dxe4 {[%clk 0:02:48]} 16. Qxe4 {[%clk 0:02:25]}  Rhe8 {[%clk 0:02:49]} 17. Qc4+ {[%clk 0:02:08]}  Bc7 {[%clk 0:02:49]} 18. Na3 {[%clk 0:02:04]}  h5 {[%clk 0:02:36]} 19. Rae1 {[%clk 0:01:22]}  Rxe1 {[%clk 0:02:28]} 20. Rxe1 {[%clk 0:01:23]}  Qd2 {[%clk 0:02:28]} 21. Rb1 {[%clk 0:01:20]}  b5 {[%clk 0:02:08]} 22. Qe4 {[%clk 0:01:09]}  Qd1+ {[%clk 0:01:39]} 23. Qe1 {[%clk 0:01:09]}  Qxe1+ {[%clk 0:01:40]} 24. Rxe1 {[%clk 0:01:09]}  Rd2 {[%clk 0:01:41]} 25. Kf1 {[%clk 0:00:37]}  Rxb2 {[%clk 0:01:38]} 26. Re2 {[%clk 0:00:38]}  Rxe2 {[%clk 0:01:33]} 27. Kxe2 {[%clk 0:00:39]}  Be5 {[%clk 0:01:26]} 28. c4 {[%clk 0:00:38]}  Bd6 {[%clk 0:01:20]} 29. Nb1 {[%clk 0:00:24]}  bxc4 {[%clk 0:01:04]} 30. Nd2 {[%clk 0:00:24]}  c3 {[%clk 0:01:05]} 31. Ne4 {[%clk 0:00:23]}  Bxh2 {[%clk 0:01:05]} 32. g3 {[%clk 0:00:20]}  c2 {[%clk 0:00:33]} 33. Kd2 {[%clk 0:00:20]}  Kc7 {[%clk 0:00:17]} 34. Kxc2 {[%clk 0:00:18]}  Bg1 {[%clk 0:00:18]} 35. Kd3 {[%clk 0:00:10]}  f5 {[%clk 0:00:17]} 36. Ng5 {[%clk 0:00:09]}  Bxf2 {[%clk 0:00:17]} 37. Ne6+ {[%clk 0:00:09]}  Kc6 {[%clk 0:00:12]} 38. Nxg7 {[%clk 0:00:10]}  Bxg3 {[%clk 0:00:10]} 39. Nxf5 {[%clk 0:00:06]}  Bc7 {[%clk 0:00:09]} 40. Nd4+ {[%clk 0:00:05]}  Kb6 {[%clk 0:00:08]} 41. Nb3 {[%clk 0:00:05]}  Kb5 {[%clk 0:00:08]} 42. Ke4 {[%clk 0:00:05]}  Kb4 {[%clk 0:00:08]} 43. Kf5 {[%clk 0:00:02]}  Bd8 {[%clk 0:00:08]} 44. Kf4 {[%clk 0:00:01]}  Be7 {[%clk 0:00:08]} 45. Kf3 {[%clk 0:00:02]}  Ka3 {[%clk 0:00:08]} 46. Nd2 {[%clk 0:00:01]}  Kxa2 {[%clk 0:00:08]} 47. Nc4 {[%clk 0:00:02]}  Kb3 {[%clk 0:00:06]} 48. Ne5 {[%clk 0:00:02]}  Bd6 {[%clk 0:00:05]} 49. Nc6 {[%clk 0:00:01]}  Kc4 {[%clk 0:00:05]} 50. Na7 {[%clk 0:00:01]}  Kc5 {[%clk 0:00:05]} 51. Nc8 {[%clk 0:00:01]}  Bf8 {[%clk 0:00:04]} 0-1


[Site "https://www.chess.com"]

[Event "Titled Tuesday Blitz May 25 2021"]
[White "Tari, Aryan"]
[Black "Hamitevici, Vladimir"]
[WhiteFideId "1510045"]
[BlackFideId "13902393"]
[WhiteElo "2656"]
[BlackElo "2359"]
[Result "1-0"]
[Round "07"]
[TimeControl "180+1"]
[Date "2021.05.25"]
[WhiteClock "0:00:31"]
[BlackClock "0:00:01"]

1. c4 {[%clk 0:03:00]}  b6 {[%clk 0:02:53]} 2. e4 {[%clk 0:02:56]}  Bb7 {[%clk 0:02:52]} 3. Nc3 {[%clk 0:02:57]}  e5 {[%clk 0:02:48]} 4. g3 {[%clk 0:02:57]}  Nc6 {[%clk 0:02:46]} 5. Bg2 {[%clk 0:02:56]}  Bc5 {[%clk 0:02:46]} 6. Nge2 {[%clk 0:02:55]}  Nge7 {[%clk 0:02:44]} 7. d3 {[%clk 0:02:54]}  d6 {[%clk 0:02:40]} 8. a3 {[%clk 0:02:51]}  a5 {[%clk 0:02:39]} 9. O-O {[%clk 0:02:46]}  h5 {[%clk 0:02:23]} 10. h3 {[%clk 0:02:46]}  Bc8 {[%clk 0:02:21]} 11. Kh2 {[%clk 0:02:45]}  Ng6 {[%clk 0:01:59]} 12. Nd5 {[%clk 0:02:38]}  Be6 {[%clk 0:01:48]} 13. f4 {[%clk 0:02:13]}  exf4 {[%clk 0:01:26]} 14. Nexf4 {[%clk 0:02:14]}  Nxf4 {[%clk 0:01:17]} 15. Bxf4 {[%clk 0:02:15]}  Qd7 {[%clk 0:01:07]} 16. Bd2 {[%clk 0:01:41]}  Bd4 {[%clk 0:01:06]} 17. Bc3 {[%clk 0:01:34]}  Bxc3 {[%clk 0:00:51]} 18. bxc3 {[%clk 0:01:35]}  Rc8 {[%clk 0:00:24]} 19. d4 {[%clk 0:01:33]}  h4 {[%clk 0:00:21]} 20. g4 {[%clk 0:01:33]}  O-O {[%clk 0:00:20]} 21. a4 {[%clk 0:01:27]}  Nd8 {[%clk 0:00:20]} 22. Qe1 {[%clk 0:01:26]}  Bxd5 {[%clk 0:00:17]} 23. cxd5 {[%clk 0:01:25]}  Qe7 {[%clk 0:00:17]} 24. Rb1 {[%clk 0:01:10]}  Re8 {[%clk 0:00:14]} 25. Qd2 {[%clk 0:01:10]}  f6 {[%clk 0:00:11]} 26. Rf5 {[%clk 0:01:09]}  Nf7 {[%clk 0:00:11]} 27. Re1 {[%clk 0:01:01]}  c6 {[%clk 0:00:11]} 28. dxc6 {[%clk 0:01:00]}  Rxc6 {[%clk 0:00:12]} 29. e5 {[%clk 0:01:00]}  Rc4 {[%clk 0:00:13]} 30. Bd5 {[%clk 0:01:00]}  Rxa4 {[%clk 0:00:13]} 31. Bc6 {[%clk 0:01:00]}  Rc4 {[%clk 0:00:10]} 32. Bxe8 {[%clk 0:01:00]}  Qxe8 {[%clk 0:00:11]} 33. exf6 {[%clk 0:00:59]}  Qc8 {[%clk 0:00:11]} 34. Re3 {[%clk 0:00:49]}  g6 {[%clk 0:00:08]} 35. Rf1 {[%clk 0:00:47]}  b5 {[%clk 0:00:05]} 36. Qd3 {[%clk 0:00:44]}  Kh7 {[%clk 0:00:02]} 37. Re7 {[%clk 0:00:45]}  Qf8 {[%clk 0:00:01]} 38. Rfe1 {[%clk 0:00:43]}  Kh6 {[%clk 0:00:01]} 39. Ra7 {[%clk 0:00:34]}  Ng5 {[%clk 0:00:01]} 40. Rf1 {[%clk 0:00:31]}  Qb8 {[%clk 0:00:01]} 41. Rg7 {[%clk 0:00:31]} 1-0


[Site "https://www.chess.com"]

[Event "Titled Tuesday Blitz May 25 2021"]
[White "Timofeev, Artyom"]
[Black "Sanchez Alvares, Kelvin Antonio"]
[WhiteFideId "4140419"]
[BlackFideId "3906680"]
[WhiteElo "2582"]
[BlackElo "2247"]
[Result "1-0"]
[Round "07"]
[TimeControl "180+1"]
[Date "2021.05.25"]
[WhiteClock "0:00:52"]
[BlackClock "0:00:11"]

1. c4 {[%clk 0:03:00]}  Nf6 {[%clk 0:02:54]} 2. Nc3 {[%clk 0:03:00]}  g6 {[%clk 0:02:49]} 3. g3 {[%clk 0:02:59]}  Bg7 {[%clk 0:02:49]} 4. Bg2 {[%clk 0:02:59]}  c5 {[%clk 0:02:50]} 5. Nf3 {[%clk 0:02:56]}  O-O {[%clk 0:02:49]} 6. O-O {[%clk 0:02:56]}  Nc6 {[%clk 0:02:49]} 7. d4 {[%clk 0:02:51]}  d6 {[%clk 0:02:49]} 8. dxc5 {[%clk 0:02:48]}  dxc5 {[%clk 0:02:30]} 9. Be3 {[%clk 0:02:47]}  Be6 {[%clk 0:02:19]} 10. h3 {[%clk 0:02:43]}  h6 {[%clk 0:02:18]} 11. Qc1 {[%clk 0:02:39]}  Qc8 {[%clk 0:02:17]} 12. Kh2 {[%clk 0:02:15]}  Kh7 {[%clk 0:02:17]} 13. Bxc5 {[%clk 0:02:00]}  Bxc4 {[%clk 0:02:14]} 14. Qf4 {[%clk 0:01:59]}  Be6 {[%clk 0:02:03]} 15. Rac1 {[%clk 0:01:58]}  Qe8 {[%clk 0:01:34]} 16. Rfd1 {[%clk 0:01:51]}  Rc8 {[%clk 0:01:32]} 17. Be3 {[%clk 0:01:35]}  Ng8 {[%clk 0:01:17]} 18. Qh4 {[%clk 0:01:32]}  Bf6 {[%clk 0:00:55]} 19. Ng5+ {[%clk 0:01:14]}  Kh8 {[%clk 0:00:53]} 20. Nce4 {[%clk 0:01:14]}  Bxa2 {[%clk 0:00:45]} 21. Nxf6 {[%clk 0:01:13]}  exf6 {[%clk 0:00:45]} 22. Ne4 {[%clk 0:01:13]}  g5 {[%clk 0:00:34]} 23. Qh5 {[%clk 0:01:09]}  Qe6 {[%clk 0:00:27]} 24. h4 {[%clk 0:01:03]}  Kg7 {[%clk 0:00:26]} 25. Nd6 {[%clk 0:00:56]}  Rb8 {[%clk 0:00:20]} 26. Bh3 {[%clk 0:00:56]}  Qb3 {[%clk 0:00:16]} 27. Nf5+ {[%clk 0:00:54]}  Kh7 {[%clk 0:00:16]} 28. hxg5 {[%clk 0:00:54]}  fxg5 {[%clk 0:00:16]} 29. Bxg5 {[%clk 0:00:54]}  Qe6 {[%clk 0:00:11]} 30. Rd6 {[%clk 0:00:52]} 1-0


[Site "https://www.chess.com"]

[Event "Titled Tuesday Blitz May 25 2021"]
[White "Tsyhanchuk_Stanislav"]
[Black "Potapova, Margarita"]
[BlackFideId "14126869"]
[WhiteElo "2469"]
[BlackElo "2229"]
[Result "1-0"]
[Round "07"]
[TimeControl "180+1"]
[Date "2021.05.25"]
[WhiteClock "0:02:40"]
[BlackClock "0:02:03"]

1. e4 {[%clk 0:03:00]}  c5 {[%clk 0:02:59]} 2. Nf3 {[%clk 0:02:56]}  d6 {[%clk 0:03:00]} 3. d4 {[%clk 0:02:56]}  cxd4 {[%clk 0:03:01]} 4. Nxd4 {[%clk 0:02:57]}  Nf6 {[%clk 0:03:01]} 5. Nc3 {[%clk 0:02:58]}  a6 {[%clk 0:03:02]} 6. Be3 {[%clk 0:02:58]}  e5 {[%clk 0:03:02]} 7. Nb3 {[%clk 0:02:59]}  Be6 {[%clk 0:03:03]} 8. Qd2 {[%clk 0:02:59]}  Be7 {[%clk 0:03:01]} 9. O-O-O {[%clk 0:03:00]}  O-O {[%clk 0:02:51]} 10. f4 {[%clk 0:03:00]}  b5 {[%clk 0:02:47]} 11. Rg1 {[%clk 0:02:54]}  Nbd7 {[%clk 0:02:43]} 12. f5 {[%clk 0:02:54]}  Bc4 {[%clk 0:02:42]} 13. g4 {[%clk 0:02:48]}  Bxb3 {[%clk 0:02:24]} 14. axb3 {[%clk 0:02:46]}  b4 {[%clk 0:02:24]} 15. Nd5 {[%clk 0:02:47]}  Nxe4 {[%clk 0:02:25]} 16. Qxb4 {[%clk 0:02:47]}  Nec5 {[%clk 0:02:18]} 17. g5 {[%clk 0:02:41]}  Rb8 {[%clk 0:02:17]} 18. Qh4 {[%clk 0:02:41]}  f6 {[%clk 0:02:09]} 19. g6 {[%clk 0:02:40]}  h6 {[%clk 0:02:03]} 20. Bxh6 {[%clk 0:02:40]} 1-0


[Site "https://www.chess.com"]

[Event "Titled Tuesday Blitz May 25 2021"]
[White "Vaishali, Rameshbabu"]
[Black "kleopl"]
[WhiteFideId "5091756"]
[WhiteElo "2313"]
[BlackElo "2487"]
[Result "1-0"]
[Round "07"]
[TimeControl "180+1"]
[Date "2021.05.25"]
[WhiteClock "0:00:27"]
[BlackClock "0:01:03"]

1. d4 {[%clk 0:03:00]}  f5 {[%clk 0:02:58]} 2. Bf4 {[%clk 0:02:59]}  d6 {[%clk 0:02:57]} 3. e3 {[%clk 0:02:58]}  Nd7 {[%clk 0:02:56]} 4. Nf3 {[%clk 0:02:48]}  Ngf6 {[%clk 0:02:55]} 5. d5 {[%clk 0:02:44]}  c6 {[%clk 0:02:53]} 6. c4 {[%clk 0:02:37]}  Qa5+ {[%clk 0:02:51]} 7. Nc3 {[%clk 0:02:37]}  g6 {[%clk 0:02:48]} 8. Be2 {[%clk 0:02:24]}  Ne4 {[%clk 0:02:47]} 9. O-O {[%clk 0:02:18]}  Nxc3 {[%clk 0:02:46]} 10. bxc3 {[%clk 0:02:19]}  Bg7 {[%clk 0:02:42]} 11. Nd4 {[%clk 0:02:17]}  cxd5 {[%clk 0:02:35]} 12. Ne6 {[%clk 0:02:15]}  Bxc3 {[%clk 0:02:33]} 13. cxd5 {[%clk 0:01:58]}  Bxa1 {[%clk 0:02:22]} 14. Qxa1 {[%clk 0:01:56]}  Nf6 {[%clk 0:02:23]} 15. Bg5 {[%clk 0:01:37]}  Bxe6 {[%clk 0:01:40]} 16. Bxf6 {[%clk 0:01:34]}  O-O {[%clk 0:01:39]} 17. Bh8 {[%clk 0:01:30]}  Kf7 {[%clk 0:01:32]} 18. Qg7+ {[%clk 0:01:26]}  Ke8 {[%clk 0:01:32]} 19. dxe6 {[%clk 0:01:24]}  a6 {[%clk 0:01:18]} 20. Qxh7 {[%clk 0:01:18]}  Qd5 {[%clk 0:01:16]} 21. Qxg6+ {[%clk 0:01:11]}  Kd8 {[%clk 0:01:16]} 22. Bg7 {[%clk 0:01:08]}  Re8 {[%clk 0:01:14]} 23. Bf3 {[%clk 0:00:59]}  Qxa2 {[%clk 0:01:12]} 24. Bxb7 {[%clk 0:00:58]}  Rb8 {[%clk 0:01:11]} 25. Bc6 {[%clk 0:00:58]}  Rg8 {[%clk 0:01:11]} 26. Qf7 {[%clk 0:00:46]}  Kc7 {[%clk 0:01:11]} 27. Rc1 {[%clk 0:00:37]}  Rb1 {[%clk 0:01:07]} 28. Qxe7+ {[%clk 0:00:35]}  Kb8 {[%clk 0:01:07]} 29. Qxd6+ {[%clk 0:00:34]}  Kc8 {[%clk 0:01:03]} 30. Qd7+ {[%clk 0:00:27]}  Kb8 {[%clk 0:01:03]} 31. Be5# {[%clk 0:00:27]} 1-0


[Site "https://www.chess.com"]

[Event "Titled Tuesday Blitz May 25 2021"]
[White "Van Foreest, Jorden"]
[Black "Nesterov, Arseniy"]
[WhiteFideId "1039784"]
[BlackFideId "24198455"]
[WhiteElo "2622"]
[BlackElo "2441"]
[Result "1-0"]
[Round "07"]
[TimeControl "180+1"]
[Date "2021.05.25"]
[WhiteClock "0:00:58"]
[BlackClock "0:00:07"]

1. e4 {[%clk 0:02:59]}  e5 {[%clk 0:03:00]} 2. Nf3 {[%clk 0:02:55]}  Nc6 {[%clk 0:03:00]} 3. d3 {[%clk 0:02:56]}  Nf6 {[%clk 0:02:58]} 4. Be2 {[%clk 0:02:55]}  Bc5 {[%clk 0:02:58]} 5. O-O {[%clk 0:02:50]}  d6 {[%clk 0:02:58]} 6. c4 {[%clk 0:02:48]}  h6 {[%clk 0:02:54]} 7. Nc3 {[%clk 0:02:47]}  O-O {[%clk 0:02:53]} 8. h3 {[%clk 0:02:46]}  a5 {[%clk 0:02:52]} 9. Be3 {[%clk 0:02:46]}  Nd7 {[%clk 0:02:43]} 10. Qd2 {[%clk 0:02:34]}  Nd4 {[%clk 0:02:37]} 11. Rae1 {[%clk 0:02:29]}  c6 {[%clk 0:02:32]} 12. Bd1 {[%clk 0:02:26]}  Qf6 {[%clk 0:02:25]} 13. Nh2 {[%clk 0:02:21]}  Ne6 {[%clk 0:02:23]} 14. Kh1 {[%clk 0:02:18]}  Qg6 {[%clk 0:02:17]} 15. Bg4 {[%clk 0:02:17]}  Bxe3 {[%clk 0:02:08]} 16. fxe3 {[%clk 0:02:15]}  Ndc5 {[%clk 0:02:03]} 17. Bf5 {[%clk 0:02:13]}  Qg5 {[%clk 0:02:03]} 18. Nf3 {[%clk 0:02:08]}  Qe7 {[%clk 0:02:02]} 19. d4 {[%clk 0:02:08]}  Nd7 {[%clk 0:01:59]} 20. c5 {[%clk 0:02:06]}  dxc5 {[%clk 0:01:34]} 21. dxe5 {[%clk 0:01:51]}  Ng5 {[%clk 0:01:29]} 22. Qd6 {[%clk 0:01:29]}  Re8 {[%clk 0:01:07]} 23. Rd1 {[%clk 0:01:17]}  Nf8 {[%clk 0:00:39]} 24. Qxe7 {[%clk 0:01:08]}  Rxe7 {[%clk 0:00:39]} 25. Rd8 {[%clk 0:01:08]}  Ne6 {[%clk 0:00:26]} 26. Bxe6 {[%clk 0:01:05]}  Rxe6 {[%clk 0:00:26]} 27. Na4 {[%clk 0:01:03]}  b6 {[%clk 0:00:07]} 28. Nxb6 {[%clk 0:01:02]}  Ba6 {[%clk 0:00:07]} 29. Rxa8 {[%clk 0:00:57]}  Bxf1 {[%clk 0:00:07]} 30. Nd7 {[%clk 0:00:58]} 1-0


[Site "https://www.chess.com"]

[Event "Titled Tuesday Blitz May 25 2021"]
[White "Wieczorek, Oskar"]
[Black "Vovk, Orest"]
[WhiteFideId "1133950"]
[BlackFideId "14113490"]
[WhiteElo "2258"]
[BlackElo "2203"]
[Result "1-0"]
[Round "07"]
[TimeControl "180+1"]
[Date "2021.05.25"]
[WhiteClock "0:00:16"]
[BlackClock "0:00:03"]

1. e4 {[%clk 0:03:00]}  Nc6 {[%clk 0:02:59]} 2. Nf3 {[%clk 0:03:01]}  d5 {[%clk 0:03:00]} 3. exd5 {[%clk 0:03:01]}  Qxd5 {[%clk 0:03:01]} 4. Nc3 {[%clk 0:03:01]}  Qa5 {[%clk 0:03:01]} 5. d4 {[%clk 0:03:02]}  Bg4 {[%clk 0:03:01]} 6. Bd2 {[%clk 0:03:01]}  Qh5 {[%clk 0:02:53]} 7. Be2 {[%clk 0:02:44]}  O-O-O {[%clk 0:02:44]} 8. d5 {[%clk 0:02:41]}  Ne5 {[%clk 0:02:42]} 9. Nxe5 {[%clk 0:02:26]}  Qxe5 {[%clk 0:02:41]} 10. f4 {[%clk 0:02:27]}  Bxe2 {[%clk 0:02:39]} 11. fxe5 {[%clk 0:02:27]}  Bxd1 {[%clk 0:02:39]} 12. Rxd1 {[%clk 0:02:28]}  e6 {[%clk 0:02:33]} 13. dxe6 {[%clk 0:02:23]}  fxe6 {[%clk 0:02:32]} 14. O-O {[%clk 0:02:23]}  Bc5+ {[%clk 0:02:31]} 15. Kh1 {[%clk 0:02:23]}  Ne7 {[%clk 0:02:31]} 16. Ne4 {[%clk 0:02:23]}  Bb6 {[%clk 0:02:15]} 17. Ng5 {[%clk 0:01:51]}  Rd5 {[%clk 0:01:36]} 18. Bc3 {[%clk 0:01:50]}  Rxd1 {[%clk 0:01:24]} 19. Rxd1 {[%clk 0:01:51]}  Nd5 {[%clk 0:01:23]} 20. Bd2 {[%clk 0:00:57]}  Re8 {[%clk 0:00:57]} 21. Nxh7 {[%clk 0:00:49]}  Ne3 {[%clk 0:00:56]} 22. Bxe3 {[%clk 0:00:39]}  Bxe3 {[%clk 0:00:55]} 23. Rf1 {[%clk 0:00:38]}  Bd4 {[%clk 0:00:42]} 24. c3 {[%clk 0:00:38]}  Bxe5 {[%clk 0:00:41]} 25. Ng5 {[%clk 0:00:37]}  Bf6 {[%clk 0:00:38]} 26. Ne4 {[%clk 0:00:35]}  Be5 {[%clk 0:00:32]} 27. g3 {[%clk 0:00:29]}  b6 {[%clk 0:00:30]} 28. Kg2 {[%clk 0:00:29]}  Rd8 {[%clk 0:00:23]} 29. h4 {[%clk 0:00:25]}  Rd3 {[%clk 0:00:20]} 30. Rf3 {[%clk 0:00:25]}  Rd1 {[%clk 0:00:18]} 31. Re3 {[%clk 0:00:18]}  Rb1 {[%clk 0:00:11]} 32. Re2 {[%clk 0:00:18]}  Kd7 {[%clk 0:00:09]} 33. Ng5 {[%clk 0:00:17]}  Kd6 {[%clk 0:00:07]} 34. Nf7+ {[%clk 0:00:16]}  Kd5 {[%clk 0:00:07]} 35. Nxe5 {[%clk 0:00:17]}  c5 {[%clk 0:00:06]} 36. h5 {[%clk 0:00:17]}  a5 {[%clk 0:00:04]} 37. g4 {[%clk 0:00:17]}  b5 {[%clk 0:00:03]} 38. Nf3 {[%clk 0:00:17]}  Kc4 {[%clk 0:00:03]} 39. Nd2+ {[%clk 0:00:14]}  Kd3 {[%clk 0:00:03]} 40. Nxb1 {[%clk 0:00:15]}  Kxe2 {[%clk 0:00:03]} 41. g5 {[%clk 0:00:16]} 1-0


[Site "https://www.chess.com"]

[Event "Titled Tuesday Blitz May 25 2021"]
[White "Yoo, Christopher Woojin"]
[Black "Pert, Richard G"]
[WhiteFideId "30909694"]
[BlackFideId "404748"]
[WhiteElo "2009"]
[BlackElo "2441"]
[Result "1-0"]
[Round "07"]
[TimeControl "180+1"]
[Date "2021.05.25"]
[WhiteClock "0:00:55"]
[BlackClock "0:00:01"]

1. e4 {[%clk 0:03:00]}  c5 {[%clk 0:02:59]} 2. Nf3 {[%clk 0:02:59]}  d6 {[%clk 0:03:00]} 3. d4 {[%clk 0:02:59]}  cxd4 {[%clk 0:03:00]} 4. Nxd4 {[%clk 0:02:58]}  Nf6 {[%clk 0:03:01]} 5. Nc3 {[%clk 0:02:58]}  g6 {[%clk 0:03:01]} 6. Bg5 {[%clk 0:02:53]}  Bg7 {[%clk 0:03:01]} 7. Bb5+ {[%clk 0:02:53]}  Bd7 {[%clk 0:02:59]} 8. Qe2 {[%clk 0:02:53]}  Nc6 {[%clk 0:02:55]} 9. O-O-O {[%clk 0:02:51]}  O-O {[%clk 0:02:51]} 10. Bxc6 {[%clk 0:02:49]}  bxc6 {[%clk 0:02:44]} 11. f4 {[%clk 0:02:49]}  c5 {[%clk 0:02:36]} 12. Nf3 {[%clk 0:02:47]}  h6 {[%clk 0:01:57]} 13. Bxf6 {[%clk 0:02:42]}  Bxf6 {[%clk 0:01:58]} 14. e5 {[%clk 0:02:42]}  Bg7 {[%clk 0:01:54]} 15. exd6 {[%clk 0:02:25]}  exd6 {[%clk 0:01:42]} 16. Rxd6 {[%clk 0:02:17]}  Bxc3 {[%clk 0:01:32]} 17. bxc3 {[%clk 0:02:14]}  Qc8 {[%clk 0:01:20]} 18. Ne5 {[%clk 0:02:09]}  Be6 {[%clk 0:01:17]} 19. Nxg6 {[%clk 0:02:07]}  fxg6 {[%clk 0:00:57]} 20. Rxe6 {[%clk 0:02:04]}  Qc7 {[%clk 0:00:40]} 21. Rxg6+ {[%clk 0:02:03]}  Kh7 {[%clk 0:00:40]} 22. Qe4 {[%clk 0:01:52]}  Qxf4+ {[%clk 0:00:39]} 23. Qxf4 {[%clk 0:01:52]}  Rxf4 {[%clk 0:00:40]} 24. Rc6 {[%clk 0:01:51]}  Rc4 {[%clk 0:00:34]} 25. Rd1 {[%clk 0:01:46]}  Rg8 {[%clk 0:00:24]} 26. Rd7+ {[%clk 0:01:40]}  Rg7 {[%clk 0:00:25]} 27. Rxg7+ {[%clk 0:01:39]}  Kxg7 {[%clk 0:00:26]} 28. Kb2 {[%clk 0:01:39]}  a5 {[%clk 0:00:21]} 29. g3 {[%clk 0:01:38]}  a4 {[%clk 0:00:21]} 30. a3 {[%clk 0:01:37]}  h5 {[%clk 0:00:20]} 31. h4 {[%clk 0:01:37]}  Kh7 {[%clk 0:00:18]} 32. Rd6 {[%clk 0:01:34]}  Rg4 {[%clk 0:00:16]} 33. Rd5 {[%clk 0:01:33]}  Kg6 {[%clk 0:00:13]} 34. Rxc5 {[%clk 0:01:33]}  Rxg3 {[%clk 0:00:13]} 35. Rc4 {[%clk 0:01:17]}  Rg4 {[%clk 0:00:14]} 36. Rb4 {[%clk 0:01:11]}  Kf5 {[%clk 0:00:14]} 37. Kc1 {[%clk 0:01:11]}  Rf4 {[%clk 0:00:12]} 38. Kd2 {[%clk 0:01:10]}  Rf2+ {[%clk 0:00:11]} 39. Kd3 {[%clk 0:01:10]}  Rf3+ {[%clk 0:00:11]} 40. Kc4 {[%clk 0:01:10]}  Kg4 {[%clk 0:00:11]} 41. Kb5+ {[%clk 0:01:07]}  Kg3 {[%clk 0:00:10]} 42. c4 {[%clk 0:01:06]}  Rxa3 {[%clk 0:00:10]} 43. Rxa4 {[%clk 0:01:00]}  Rc3 {[%clk 0:00:06]} 44. c5 {[%clk 0:01:00]}  Rxc2 {[%clk 0:00:06]} 45. c6 {[%clk 0:00:59]}  Rb2+ {[%clk 0:00:05]} 46. Rb4 {[%clk 0:00:59]}  Rc2 {[%clk 0:00:04]} 47. Rc4 {[%clk 0:00:57]}  Rb2+ {[%clk 0:00:04]} 48. Kc5 {[%clk 0:00:57]}  Rb8 {[%clk 0:00:02]} 49. c7 {[%clk 0:00:57]}  Rc8 {[%clk 0:00:02]} 50. Kd6 {[%clk 0:00:58]}  Rg8 {[%clk 0:00:02]} 51. Kd7 {[%clk 0:00:55]}  Rg7+ {[%clk 0:00:02]} 52. Kc6 {[%clk 0:00:56]}  Rg8 {[%clk 0:00:02]} 53. Kb7 {[%clk 0:00:56]}  Rg4 {[%clk 0:00:01]} 54. c8=Q {[%clk 0:00:55]} 1-0


[Site "https://www.chess.com"]